Workbook

Sheet Schnellrechner
B3: OLGAflex Schnellrechner | O3: Stand: 05.21
Q4: PTG Ri | R4: PTG AR
Q5: =IF($J$8>60,#REF!,R5) -> 0 | R5: 0
C6: Vorname und Nachname | G6: Max | J6: Muster | Q6: =IF($J$8>60,#REF!,R6) -> 5 | R6: 5
Q7: =IF($J$8>60,#REF!,R7) -> 10 | R7: 10
C8: Geburtsjahr | G8: 1990 | J8: =YEAR(G10)-G8 -> 31 | Q8: =IF($J$8>60,#REF!,R8) -> 15 | R8: 15
Q9: =IF($J$8>60,#REF!,R9) -> 20 | R9: 20
C10: Versicherungsbeginn | G10: 2021-05-01 | Q10: =IF($J$8>60,#REF!,R10) -> 25 | R10: 25
Q11: =IF($J$8>60,#REF!,R11) -> 30 | R11: 30
Q12: =IF($J$8>60,#REF!,R12) -> 35 | R12: 35
Q13: =IF($J$8>60,#REF!,R13) -> 45 | R13: 45
C14: Gewünschte Absicherung wählen: | Q14: =IF($J$8>60,#REF!,R14) -> 50 | R14: 50
Q15: =IF($J$8>60,#REF!,R15) -> 55 | R15: 55
C16: Tarif | F16: Pflegetagegeld | M16: Beitrag | Q16: =IF($J$8>60,#REF!,R16) -> 60 | R16: 60
Q17: =IF($J$8>60,#REF!,R17) -> 65 | R17: 65
C18: OLGAflex.AR | E18: i | H18: 0 | I18: ≙ | J18: =CONCATENATE("",H18*30," € pro Monat") -> 0 € pro Monat | M18: =Beitrag!I6 -> 0 | Q18: =IF($J$8>60,#REF!,R18) -> 70 | R18: 70
Q19: =IF($J$8>60,#REF!,R19) -> 75 | R19: 75
C20: OLGAflex.Ri | E20: i | H20: 150 | I20: ≙ | J20: =CONCATENATE(H20*30," € pro Monat") -> 4500 € pro Monat | M20: =Beitrag!I7 -> 10.5 | Q20: =IF($J$8>60,#REF!,R20) -> 80 | R20: 80
C21: =IF(J8>60,"ab Alter 61 kann nur noch die Tarifstufe OLGAflex.AR abgeschlossen werden","") ->  | Q21: =IF($J$8>60,#REF!,R21) -> 85 | R21: 85
Q22: =IF($J$8>60,#REF!,R22) -> 90 | R22: 90
C23: Gesamt | G23: =IF(H18+H20>150,"Abbruch:","") ->  | H23: =IF((H18+H20)>150,"Höchsttagegeld",H18+H20) -> 150 | I23: =IF((H18+H20)>150,"überschritten!",CONCATENATE("≙ ",(H18+H20)*30," € pro Monat")) -> ≙ 4500 € pro Monat | M23: =M18+M20 -> 10.5 | Q23: =IF($J$8>60,#REF!,R23) -> 95 | R23: 95
Q24: =IF($J$8>60,#REF!,R24) -> 100 | R24: 100
C27: Überblick der monatlichen Leistungen aus OLGAflex:
Q39: =IF($J$8>60,#REF!,R39) -> 105 | R39: 105
Q40: =IF($J$8>60,#REF!,R40) -> 110 | R40: 110
C41: Mit dieser Kombination entwickelt sich der OLGAflex-Beitrag folgendermaßen: | N41: i | Q41: =IF($J$8>60,#REF!,R41) -> 115 | R41: 115
Q42: =IF($J$8>60,#REF!,R42) -> 120 | R42: 120
Q43: =IF($J$8>60,#REF!,R43) -> 125 | R43: 125
Q44: =IF($J$8>60,#REF!,R44) -> 130 | R44: 130
Q45: =IF($J$8>60,#REF!,R45) -> 135 | R45: 135
Q46: =IF($J$8>60,#REF!,R46) -> 140 | R46: 140
Q47: =IF($J$8>60,#REF!,R47) -> 145 | R47: 145
Q48: =IF($J$8>60,#REF!,R48) -> 150 | R48: 150
C56: Beitragsänderungen aufgrund von Beitragsanpassungen oder Pflegegeld-Dynamisierungen sind nicht berücksichtigt.

Sheet Beitrag
A1: Alter | B1: OLGAflex.AR | C1: OLGAflex.Ri | D1: Hinweis: bei BAP Beitrag auf Tab. | H1: variable Eingaben
D2: "Beitragstabelle pm1" austauschen | G2: Alter | H2: =Schnellrechner!J8 -> 31 | I2: =YEAR(Schnellrechner!G10) -> 2021
A3: 0 | B3: =+'Beitragstabelle pm1'!$B$7 -> 0.3 | C3: 0 | D3: und Beitrag bei Alter 61+ = 0,00 setzen
A4: 1 | B4: =+'Beitragstabelle pm1'!$B$7 -> 0.3 | C4: 0 | G4: Pflegetageld OLGAflex | H4: =H6+H7 -> 150
A5: 2 | B5: =+'Beitragstabelle pm1'!$B$7 -> 0.3 | C5: 0
A6: 3 | B6: =+'Beitragstabelle pm1'!$B$7 -> 0.3 | C6: 0 | G6: OLGAflex.AR | H6: =Schnellrechner!$H$18 -> 0 | I6: =IF(H6+H7>150,"",VLOOKUP(H2,A3:C93,2,FALSE)*H6) -> 0 | J6: =VLOOKUP(H2,A3:C93,2,FALSE)*H4 -> 127.5
A7: 4 | B7: =+'Beitragstabelle pm1'!$B$7 -> 0.3 | C7: 0 | G7: OLGAflex.Ri | H7: =Schnellrechner!$H$20 -> 150 | I7: =IF(H6+H7>150,"",VLOOKUP(H2,A3:C93,3,FALSE)*H7) -> 10.5
A8: 5 | B8: =+'Beitragstabelle pm1'!$B$7 -> 0.3 | C8: 0 | G8: Umstellungen | H8: =H7/10 -> 15
A9: 6 | B9: =+'Beitragstabelle pm1'!$B$7 -> 0.3 | C9: 0 | G9: Alter | M9: Umstellung | N9: Mehrbeitrag | O9: Jahr | Q9: Gesamtbeitrag OLGAflex | T9: Vergleichs-beitrag ohne Föba
A10: 7 | B10: =+'Beitragstabelle pm1'!$B$7 -> 0.3 | C10: 0 | G10: =H2 -> 31 | H10: 0 | I10: =H7 -> 150 | O10: =I2 -> 2021 | P10: ="ab "&O10 -> ab 2021 | Q10: =I6+I7 -> 10.5 | T10: =J6 -> 127.5
A11: 8 | B11: =+'Beitragstabelle pm1'!$B$7 -> 0.3 | C11: 0 | G11: =IF((G10+5)<61,G10+5,61) -> 36 | H11: =IF(H$8>1,10,I10) -> 10 | I11: =I10-H11 -> 140 | J11: =IF(G11>60,I10,H11) -> 10 | K11: =IF((J10-J11)>9.9,0,1) -> 1 | L11: 1 | M11: =J11*K11*L11 -> 10 | N11: =N36-N35 -> 9.7 | O11: =O10+(G11-G10) -> 2026 | P11: ="ab "&O11 -> ab 2026 | Q11: =Q10+N11 -> 20.2 | T11: =T10 -> 127.5
A12: 9 | B12: =+'Beitragstabelle pm1'!$B$7 -> 0.3 | C12: 0 | G12: =IF((G11+2)<61,G11+2,61) -> 38 | H12: =IF(H$8>2,10,I11) -> 10 | I12: =I11-H12 -> 130 | J12: =IF(G12>60,I11,H12) -> 10 | K12: 1 | L12: 1 | M12: =J12*K12*L12 -> 10 | N12: =N37-N36 -> 10.5 | O12: =IF((G12-G11)=1,O11+(G12-G11),O11+2) -> 2028 | P12: ab 2028 | Q12: 30.7 | T12: =T11 -> 127.5
A13: 10 | B13: =+'Beitragstabelle pm1'!$B$7 -> 0.3 | C13: 0 | G13: =IF((G12+2)<61,G12+2,61) -> 40 | H13: =IF(H$8>3,10,I12) -> 10 | I13: 120 | J13: 10 | K13: 1 | L13: =IF((G13-G10)=0,0,1) -> 1 | M13: 10 | N13: 11.5 | O13: =IF((G13-G12)=1,O12+(G13-G12),O12+2) -> 2030 | P13: ab 2030 | Q13: 42.2 | T13: 127.5
A14: 11 | B14: =+'Beitragstabelle pm1'!$B$7 -> 0.3 | C14: 0 | G14: 42 | H14: =IF(H$8>4,10,I13) -> 10 | I14: 110 | J14: =IF(G14>60,I13,H14) -> 10 | K14: 1 | L14: 1 | M14: 10 | N14: 12.5 | O14: 2032 | P14: ab 2032 | Q14: 54.7 | T14: 127.5
A15: 12 | B15: =+'Beitragstabelle pm1'!$B$7 -> 0.3 | C15: 0 | G15: 44 | H15: =IF(H$8>5,10,I14) -> 10 | I15: 100 | J15: 10 | K15: 1 | L15: 1 | M15: 10 | N15: 13.6 | O15: 2034 | P15: ab 2034 | Q15: 68.3 | T15: 127.5
A16: 13 | B16: =+'Beitragstabelle pm1'!$B$7 -> 0.3 | C16: 0 | G16: 46 | H16: =IF(H$8>6,10,I15) -> 10 | I16: 90 | J16: 10 | K16: 1 | L16: 1 | M16: 10 | N16: 14.8 | O16: 2036 | P16: ab 2036 | Q16: 83.1 | T16: 127.5
A17: 14 | B17: =+'Beitragstabelle pm1'!$B$7 -> 0.3 | C17: 0 | G17: 48 | H17: =IF(H$8>7,10,I16) -> 10 | I17: 80 | J17: 10 | K17: 1 | L17: 1 | M17: 10 | N17: 16.1 | O17: 2038 | P17: ab 2038 | Q17: 99.2 | T17: 127.5
A18: 15 | B18: =+'Beitragstabelle pm1'!$B$7 -> 0.3 | C18: 0 | G18: 50 | H18: =IF(H$8>8,10,I17) -> 10 | I18: 70 | J18: 10 | K18: =IF((J17-J18)>9.9,0,1) -> 1 | L18: 1 | M18: 10 | N18: 17.6 | O18: 2040 | P18: ab 2040 | Q18: 116.8 | T18: 127.5
A19: 16 | B19: =+'Beitragstabelle pm1'!$B$7 -> 0.3 | C19: 0 | G19: 52 | H19: =IF(H$8>9,10,I18) -> 10 | I19: 60 | J19: 10 | K19: 1 | L19: 1 | M19: 10 | N19: 27.6 | O19: 2042 | P19: ab 2042 | Q19: 144.4 | T19: 127.5
A20: 17 | B20: =+'Beitragstabelle pm1'!$B$8 -> 0.18 | C20: 0 | G20: 54 | H20: =IF(H$8>10,10,I19) -> 10 | I20: 50 | J20: 10 | K20: 1 | L20: =IF((G20-G17)=0,0,1) -> 1 | M20: 10 | N20: 19.6 | O20: 2044 | P20: ab 2044 | Q20: 164 | T20: 127.5
A21: 18 | B21: =+'Beitragstabelle pm1'!$B$8 -> 0.18 | C21: 0 | G21: 56 | H21: =IF(H$8>11,10,I20) -> 10 | I21: 40 | J21: 10 | K21: 1 | L21: =IF((G21-G18)=0,0,1) -> 1 | M21: 10 | N21: 21.7 | O21: 2046 | P21: ab 2046 | Q21: 185.7 | T21: 127.5
A22: 19 | B22: =+'Beitragstabelle pm1'!$B$8 -> 0.18 | C22: 0 | G22: 58 | H22: =IF(H$8>12,10,I21) -> 10 | I22: 30 | J22: 10 | K22: 1 | L22: 1 | M22: 10 | N22: 24 | O22: 2048 | P22: ab 2048 | Q22: 209.7 | T22: 127.5
A23: 20 | B23: =+'Beitragstabelle pm1'!$B$8 -> 0.18 | C23: 0 | G23: 60 | H23: =IF(H$8>13,10,I22) -> 10 | I23: 20 | J23: 10 | K23: 1 | L23: 1 | M23: 10 | N23: 26.7 | O23: 2050 | P23: ab 2050 | Q23: 236.4 | T23: 127.5
A24: 21 | B24: =+'Beitragstabelle pm1'!B9 -> 0.58 | C24: =+'Beitragstabelle pm1'!C9 -> 0.07 | G24: 61 | H24: =IF(H$8>14,10,I23) -> 10 | I24: 10 | J24: 20 | K24: 1 | L24: 1 | M24: 20 | N24: 56.2 | O24: 2051 | P24: ab 2051 | Q24: 292.6 | T24: 127.5
A25: 22 | B25: =+'Beitragstabelle pm1'!B10 -> 0.61 | C25: =+'Beitragstabelle pm1'!C10 -> 0.07 | G25: 61 | H25: =IF(H$8>15,10,I24) -> 10 | I25: 0 | J25: 10 | K25: 0 | L25: 1 | M25: 0 | N25: 0 | O25: 2053 | P25: ab 2053 | Q25: 292.6 | T25: 127.5
A26: 23 | B26: =+'Beitragstabelle pm1'!B11 -> 0.63 | C26: =+'Beitragstabelle pm1'!C11 -> 0.07 | G26: 61 | H26: =IF(H$8>16,10,I25) -> 0 | I26: 0 | J26: 0 | K26: 0 | L26: 1 | M26: 0 | N26: 0 | O26: 2055 | P26: ab 2055 | Q26: 292.6 | T26: 127.5
A27: 24 | B27: =+'Beitragstabelle pm1'!B12 -> 0.65 | C27: =+'Beitragstabelle pm1'!C12 -> 0.07 | G27: 61 | H27: =IF(H$8>17,10,I26) -> 0 | I27: 0 | J27: 0 | K27: 1 | L27: 0 | M27: 0 | N27: 0 | O27: 2057 | P27: ab 2057 | Q27: 292.6 | T27: 127.5
A28: 25 | B28: =+'Beitragstabelle pm1'!B13 -> 0.68 | C28: =+'Beitragstabelle pm1'!C13 -> 0.07 | G28: 61 | H28: =IF(H$8>18,10,I27) -> 0 | I28: 0 | J28: 0 | K28: 1 | L28: 0 | M28: 0 | N28: 0 | O28: 2059 | P28: ab 2059 | Q28: 292.6 | T28: 127.5
A29: 26 | B29: =+'Beitragstabelle pm1'!B14 -> 0.7 | C29: =+'Beitragstabelle pm1'!C14 -> 0.07 | G29: 61 | H29: =IF(H$8>19,10,I28) -> 0 | I29: 0 | J29: 0 | K29: 1 | L29: 0 | M29: 0 | N29: 0 | O29: 2061 | P29: ab 2061 | Q29: 292.6 | T29: 127.5
A30: 27 | B30: =+'Beitragstabelle pm1'!B15 -> 0.73 | C30: =+'Beitragstabelle pm1'!C15 -> 0.07
A31: 28 | B31: =+'Beitragstabelle pm1'!B16 -> 0.76 | C31: =+'Beitragstabelle pm1'!C16 -> 0.07
A32: 29 | B32: =+'Beitragstabelle pm1'!B17 -> 0.79 | C32: =+'Beitragstabelle pm1'!C17 -> 0.07
A33: 30 | B33: =+'Beitragstabelle pm1'!B18 -> 0.82 | C33: =+'Beitragstabelle pm1'!C18 -> 0.07
A34: 31 | B34: =+'Beitragstabelle pm1'!B19 -> 0.85 | C34: =+'Beitragstabelle pm1'!C19 -> 0.07 | G34: Alter | H34: TG AR | I34: Beitrag AR | J34: TG Ri | K34: Beitrag Ri | L34: Umstellung | M34: Mehrbeitrag in AR | N34: Summe Beitrag AR plus Ri | Q34: ab Jahr | R34: OLGAflex | S34: Vergleichsbeitrag (ab Beginn 100 % OLGAflex.AR) | U34: Alter
A35: 32 | B35: =+'Beitragstabelle pm1'!B20 -> 0.89 | C35: =+'Beitragstabelle pm1'!C20 -> 0.07 | G35: =H2 -> 31 | H35: =H6 -> 0 | I35: =I6 -> 0 | J35: =H7 -> 150 | K35: =I7 -> 10.5 | N35: =I35+K35 -> 10.5 | Q35: =IF(R35=" "," ",O10) -> 2021 | R35: =Q10 -> 10.5 | S35: =T10 -> 127.5 | U35: =H2 -> 31 | W35: Ri | X35: AR
A36: 33 | B36: =+'Beitragstabelle pm1'!B21 -> 0.92 | C36: =+'Beitragstabelle pm1'!C21 -> 0.07 | G36: =IF((G35+5)<61,G35+5,61) -> 36 | H36: =H35+L36 -> 10 | I36: =I35+M36 -> 10.4 | J36: =J35-L36 -> 140 | K36: =VLOOKUP(G36,A$3:D$64,3,FALSE)*J36 -> 9.8 | L36: =M11 -> 10 | M36: =VLOOKUP(G36,A$3:D$64,2,FALSE)*L36 -> 10.4 | N36: =I36+K36 -> 20.2 | Q36: =IF(R36=" "," ",O10+1) -> 2022 | R36: =IF(U36=51,V36,R35) -> 10.5 | S36: =S35 -> 127.5 | U36: =U35+1 -> 32 | V36: =W36+X36 -> 10.5 | W36: =VLOOKUP(U36,A3:C93,3,FALSE)*H7 -> 10.5 | X36: =VLOOKUP(H2,A3:C93,2,FALSE)*H6 -> 0
A37: 34 | B37: =+'Beitragstabelle pm1'!B22 -> 0.96 | C37: =+'Beitragstabelle pm1'!C22 -> 0.07 | G37: =IF((G36+2)<61,G36+2,61) -> 38 | H37: =H36+L37 -> 20 | I37: =I36+M37 -> 21.6 | J37: =J36-L37 -> 130 | K37: =VLOOKUP(G37,A$3:D$64,3,FALSE)*J37 -> 9.1 | L37: =M12 -> 10 | M37: =VLOOKUP(G37,A$3:D$64,2,FALSE)*L37 -> 11.2 | N37: =I37+K37 -> 30.7 | Q37: =IF(R37=" "," ",O10+2) -> 2023 | R37: =IF(U37=51,V37,R36) -> 10.5 | S37: =S36 -> 127.5 | U37: =U36+1 -> 33 | V37: =W37+X37 -> 10.5 | W37: =VLOOKUP(U37,A3:C93,3,FALSE)*H7 -> 10.5 | X37: =X36 -> 0
A38: 35 | B38: =+'Beitragstabelle pm1'!B23 -> 1 | C38: =+'Beitragstabelle pm1'!C23 -> 0.07 | G38: =IF((G37+2)<61,G37+2,61) -> 40 | H38: =H37+L38 -> 30 | I38: 33.8 | J38: =J37-L38 -> 120 | K38: =VLOOKUP(G38,A$3:D$64,3,FALSE)*J38 -> 8.4 | L38: =M13 -> 10 | M38: =VLOOKUP(G38,A$3:D$64,2,FALSE)*L38 -> 12.2 | N38: =I38+K38 -> 42.2 | Q38: =IF(R38=" "," ",O10+3) -> 2024 | R38: 10.5 | S38: 127.5 | U38: 34 | V38: 10.5 | W38: =VLOOKUP(U38,A3:C93,3,FALSE)*H7 -> 10.5 | X38: =X37 -> 0
A39: 36 | B39: =+'Beitragstabelle pm1'!B24 -> 1.04 | C39: =+'Beitragstabelle pm1'!C24 -> 0.07 | G39: 42 | H39: 40 | I39: 47 | J39: 110 | K39: =VLOOKUP(G39,A$3:D$64,3,FALSE)*J39 -> 7.7 | L39: 10 | M39: 13.2 | N39: 54.7 | Q39: =IF(R39=" "," ",O10+4) -> 2025 | R39: 10.5 | S39: 127.5 | U39: 35 | V39: 10.5 | W39: =VLOOKUP(U39,A3:C93,3,FALSE)*H7 -> 10.5 | X39: =X38 -> 0
A40: 37 | B40: =+'Beitragstabelle pm1'!B25 -> 1.08 | C40: =+'Beitragstabelle pm1'!C25 -> 0.07 | G40: 44 | H40: 50 | I40: 61.3 | J40: 100 | K40: 7 | L40: 10 | M40: 14.3 | N40: 68.3 | Q40: =IF(R40="-","-",P11) -> ab 2026 | R40: =IF(Q11=R35,"-",IF(R35="-","-",Q11)) -> 20.2 | S40: =IF(R40="-","-",S35) -> 127.5
A41: 38 | B41: =+'Beitragstabelle pm1'!B26 -> 1.12 | C41: =+'Beitragstabelle pm1'!C26 -> 0.07 | G41: 46 | H41: 60 | I41: 76.8 | J41: 90 | K41: 6.3 | L41: 10 | M41: 15.5 | N41: 83.1 | Q41: =IF(R41="-","-",P12) -> ab 2028 | R41: =IF(Q12=R40,"-",IF(R40="-","-",Q12)) -> 30.7 | S41: =IF(R41="-","-",S40) -> 127.5
A42: 39 | B42: =+'Beitragstabelle pm1'!B27 -> 1.17 | C42: =+'Beitragstabelle pm1'!C27 -> 0.07 | G42: 48 | H42: 70 | I42: 93.6 | J42: 80 | K42: 5.6 | L42: 10 | M42: 16.8 | N42: 99.2 | Q42: =IF(R42="-","-",P13) -> ab 2030 | R42: =IF(Q13=R41,"-",IF(R41="-","-",Q13)) -> 42.2 | S42: =IF(R42="-","-",S41) -> 127.5
A43: 40 | B43: =+'Beitragstabelle pm1'!B28 -> 1.22 | C43: =+'Beitragstabelle pm1'!C28 -> 0.07 | G43: 50 | H43: 80 | I43: 111.9 | J43: 70 | K43: 4.9 | L43: 10 | M43: 18.3 | N43: 116.8 | Q43: =IF(R43="-","-",P14) -> ab 2032 | R43: =IF(Q14=R42,"-",IF(R42="-","-",Q14)) -> 54.7 | S43: =IF(R43="-","-",S42) -> 127.5
A44: 41 | B44: =+'Beitragstabelle pm1'!B29 -> 1.27 | C44: =+'Beitragstabelle pm1'!C29 -> 0.07 | G44: 52 | H44: 90 | I44: 131.8 | J44: 60 | K44: 12.6 | L44: 10 | M44: 19.9 | N44: 144.4 | Q44: =IF(R44="-","-",P15) -> ab 2034 | R44: =IF(Q15=R43,"-",IF(R43="-","-",Q15)) -> 68.3 | S44: =IF(R44="-","-",S43) -> 127.5
A45: 42 | B45: =+'Beitragstabelle pm1'!B30 -> 1.32 | C45: =+'Beitragstabelle pm1'!C30 -> 0.07 | G45: 54 | H45: 100 | I45: 153.5 | J45: 50 | K45: 10.5 | L45: 10 | M45: 21.7 | N45: 164 | Q45: ab 2036 | R45: 83.1 | S45: 127.5
A46: 43 | B46: =+'Beitragstabelle pm1'!B31 -> 1.37 | C46: =+'Beitragstabelle pm1'!C31 -> 0.07 | G46: 56 | H46: 110 | I46: 177.3 | J46: 40 | K46: 8.4 | L46: 10 | M46: 23.8 | N46: 185.7 | Q46: ab 2038 | R46: 99.2 | S46: 127.5
A47: 44 | B47: =+'Beitragstabelle pm1'!B32 -> 1.43 | C47: =+'Beitragstabelle pm1'!C32 -> 0.07 | G47: 58 | H47: 120 | I47: 203.4 | J47: 30 | K47: 6.3 | L47: 10 | M47: 26.1 | N47: 209.7 | Q47: ab 2040 | R47: 116.8 | S47: 127.5
A48: 45 | B48: =+'Beitragstabelle pm1'!B33 -> 1.48 | C48: =+'Beitragstabelle pm1'!C33 -> 0.07 | G48: 60 | H48: 130 | I48: 232.2 | J48: 20 | K48: 4.2 | L48: 10 | M48: 28.8 | N48: 236.4 | Q48: ab 2042 | R48: 144.4 | S48: 127.5
A49: 46 | B49: =+'Beitragstabelle pm1'!B34 -> 1.55 | C49: =+'Beitragstabelle pm1'!C34 -> 0.07 | G49: 61 | H49: 150 | I49: 292.6 | J49: 0 | K49: 0 | L49: 20 | M49: 60.4 | N49: 292.6 | Q49: ab 2044 | R49: 164 | S49: 127.5
A50: 47 | B50: =+'Beitragstabelle pm1'!B35 -> 1.61 | C50: =+'Beitragstabelle pm1'!C35 -> 0.07 | G50: 61 | H50: 150 | I50: 292.6 | J50: 0 | K50: 0 | L50: 0 | M50: 0 | N50: 292.6 | Q50: ab 2046 | R50: 185.7 | S50: 127.5
A51: 48 | B51: =+'Beitragstabelle pm1'!B36 -> 1.68 | C51: =+'Beitragstabelle pm1'!C36 -> 0.07 | G51: 61 | H51: 150 | I51: 292.6 | J51: 0 | K51: 0 | L51: 0 | M51: 0 | N51: 292.6 | Q51: ab 2048 | R51: 209.7 | S51: 127.5
A52: 49 | B52: =+'Beitragstabelle pm1'!B37 -> 1.75 | C52: =+'Beitragstabelle pm1'!C37 -> 0.07 | G52: 61 | H52: 150 | I52: 292.6 | J52: 0 | K52: 0 | L52: 0 | M52: 0 | N52: 292.6 | Q52: ab 2050 | R52: 236.4 | S52: 127.5
A53: 50 | B53: =+'Beitragstabelle pm1'!B38 -> 1.83 | C53: =+'Beitragstabelle pm1'!C38 -> 0.07 | G53: 61 | H53: 150 | I53: 292.6 | J53: 0 | K53: 0 | L53: 0 | M53: 0 | N53: 292.6 | Q53: ab 2051 | R53: 292.6 | S53: 127.5
A54: 51 | B54: =+'Beitragstabelle pm1'!B39 -> 1.91 | C54: =+'Beitragstabelle pm1'!C39 -> 0.21 | G54: 61 | H54: =H53+L54 -> 150 | I54: 292.6 | J54: 0 | K54: 0 | L54: 0 | M54: 0 | N54: 292.6 | Q54: - | R54: - | S54: -
A55: 52 | B55: =+'Beitragstabelle pm1'!B40 -> 1.99 | C55: =+'Beitragstabelle pm1'!C40 -> 0.21
A56: 53 | B56: =+'Beitragstabelle pm1'!B41 -> 2.08 | C56: =+'Beitragstabelle pm1'!C41 -> 0.21
A57: 54 | B57: =+'Beitragstabelle pm1'!B42 -> 2.17 | C57: =+'Beitragstabelle pm1'!C42 -> 0.21
A58: 55 | B58: =+'Beitragstabelle pm1'!B43 -> 2.27 | C58: =+'Beitragstabelle pm1'!C43 -> 0.21
A59: 56 | B59: =+'Beitragstabelle pm1'!B44 -> 2.38 | C59: =+'Beitragstabelle pm1'!C44 -> 0.21
A60: 57 | B60: =+'Beitragstabelle pm1'!B45 -> 2.49 | C60: =+'Beitragstabelle pm1'!C45 -> 0.21
A61: 58 | B61: =+'Beitragstabelle pm1'!B46 -> 2.61 | C61: =+'Beitragstabelle pm1'!C46 -> 0.21
A62: 59 | B62: =+'Beitragstabelle pm1'!B47 -> 2.74 | C62: =+'Beitragstabelle pm1'!C47 -> 0.21
A63: 60 | B63: =+'Beitragstabelle pm1'!B48 -> 2.88 | C63: =+'Beitragstabelle pm1'!C48 -> 0.21
A64: 61 | B64: =+'Beitragstabelle pm1'!B49 -> 3.02 | C64: 0
A65: 62 | B65: =+'Beitragstabelle pm1'!B50 -> 3.17 | C65: =+'Beitragstabelle pm1'!C50 -> 0
A66: 63 | B66: =+'Beitragstabelle pm1'!B51 -> 3.34 | C66: =+'Beitragstabelle pm1'!C51 -> 0
A67: 64 | B67: =+'Beitragstabelle pm1'!B52 -> 3.52 | C67: =+'Beitragstabelle pm1'!C52 -> 0
A68: 65 | B68: =+'Beitragstabelle pm1'!B53 -> 3.72 | C68: =+'Beitragstabelle pm1'!C53 -> 0
A69: 66 | B69: =+'Beitragstabelle pm1'!B54 -> 3.92 | C69: =+'Beitragstabelle pm1'!C54 -> 0
A70: 67 | B70: =+'Beitragstabelle pm1'!B55 -> 4.14 | C70: =+'Beitragstabelle pm1'!C55 -> 0
A71: 68 | B71: =+'Beitragstabelle pm1'!B56 -> 4.38 | C71: =+'Beitragstabelle pm1'!C56 -> 0
A72: 69 | B72: =+'Beitragstabelle pm1'!B57 -> 4.63 | C72: =+'Beitragstabelle pm1'!C57 -> 0
A73: 70 | B73: =+'Beitragstabelle pm1'!B58 -> 4.91 | C73: =+'Beitragstabelle pm1'!C58 -> 0

Sheet Beitragstabelle pm1 (hidden)
A1: Beiträge Tarif OLGAflex Einzelversicherung
A4: für 1 € | B4: OLGAflex.AR | C4: OLGAflex.Ri
A5: Stand | B5: 05.21 | C5: 05.21
A6: Alter | B6: € | C6: €
A7: 0-16 | B7: 0.3 | C7: -
A8: 17-20 | B8: 0.18 | C8: -
A9: 21 | B9: 0.58 | C9: 0.07
A10: 22 | B10: 0.61 | C10: 0.07
A11: 23 | B11: 0.63 | C11: 0.07
A12: 24 | B12: 0.65 | C12: 0.07
A13: 25 | B13: 0.68 | C13: 0.07
A14: 26 | B14: 0.7 | C14: 0.07
A15: 27 | B15: 0.73 | C15: 0.07
A16: 28 | B16: 0.76 | C16: 0.07
A17: 29 | B17: 0.79 | C17: 0.07
A18: 30 | B18: 0.82 | C18: 0.07
A19: 31 | B19: 0.85 | C19: 0.07
A20: 32 | B20: 0.89 | C20: 0.07
A21: 33 | B21: 0.92 | C21: 0.07
A22: 34 | B22: 0.96 | C22: 0.07
A23: 35 | B23: 1 | C23: 0.07
A24: 36 | B24: 1.04 | C24: 0.07
A25: 37 | B25: 1.08 | C25: 0.07
A26: 38 | B26: 1.12 | C26: 0.07
A27: 39 | B27: 1.17 | C27: 0.07
A28: 40 | B28: 1.22 | C28: 0.07
A29: 41 | B29: 1.27 | C29: 0.07
A30: 42 | B30: 1.32 | C30: 0.07
A31: 43 | B31: 1.37 | C31: 0.07
A32: 44 | B32: 1.43 | C32: 0.07
A33: 45 | B33: 1.48 | C33: 0.07
A34: 46 | B34: 1.55 | C34: 0.07
A35: 47 | B35: 1.61 | C35: 0.07
A36: 48 | B36: 1.68 | C36: 0.07
A37: 49 | B37: 1.75 | C37: 0.07
A38: 50 | B38: 1.83 | C38: 0.07
A39: 51 | B39: 1.91 | C39: 0.21
A40: 52 | B40: 1.99 | C40: 0.21
A41: 53 | B41: 2.08 | C41: 0.21
A42: 54 | B42: 2.17 | C42: 0.21
A43: 55 | B43: 2.27 | C43: 0.21
A44: 56 | B44: 2.38 | C44: 0.21
A45: 57 | B45: 2.49 | C45: 0.21
A46: 58 | B46: 2.61 | C46: 0.21
A47: 59 | B47: 2.74 | C47: 0.21
A48: 60 | B48: 2.88 | C48: 0.21
A49: 61 | B49: 3.02 | C49: 0
A50: 62 | B50: 3.17 | C50: 0
A51: 63 | B51: 3.34 | C51: 0
A52: 64 | B52: 3.52 | C52: 0
A53: 65 | B53: 3.72 | C53: 0
A54: 66 | B54: 3.92 | C54: 0
A55: 67 | B55: 4.14 | C55: 0
A56: 68 | B56: 4.38 | C56: 0
A57: 69 | B57: 4.63 | C57: 0
A58: 70 | B58: 4.91 | C58: 0
C59: 0

Sheet Leistungen (hidden)
A4: Pflegetageld OLGAflex | B4: =IF(Beitrag!H4>150,"",Beitrag!H4) -> 150
B6: Ambulant | C6: Stationär
A7: Pflegegrad 1 | B7: 10 %* | C7: 10 %*
A8: Pflegegrad 2 | B8: 30 %* | C8: 100 %*
A9: Pflegegrad 3 | B9: 70 %* | C9: 100 %*
A10: Pflegegrad 4 | B10: 100 %* | C10: 100 %*
A11: Pflegegrad 5 | B11: 100 %* | C11: 100 %*
B13: Ambulant | C13: Stationär
A14: Pflegegrad 1 | B14: 0.1 | C14: 0.1
A15: Pflegegrad 2 | B15: 0.3 | C15: 1
A16: Pflegegrad 3 | B16: 0.7 | C16: 1
A17: Pflegegrad 4 | B17: 1 | C17: 1
A18: Pflegegrad 5 | B18: 1 | C18: 1
B20: Ambulant | C20: Stationär
A21: Pflegegrad 1 | B21: =B14*$B$4*30 -> 450 | C21: =C14*$B$4*30 -> 450
A22: Pflegegrad 2 | B22: =B15*$B$4*30 -> 1350 | C22: 4500
A23: Pflegegrad 3 | B23: 3150 | C23: 4500
A24: Pflegegrad 4 | B24: 4500 | C24: 4500
A25: Pflegegrad 5 | B25: 4500 | C25: 4500

Sheet Tabelle2 (hidden)
